[Event "Chile Championship Absolute 2022"]
[Site "Las Condes"]
[Date "2022.02.21"]
[Round "5.2"]
[White "Diaz Vasquez, Martin"]
[Black "Aguirre Contreras, Cristian Rodrigo"]
[Result "1-0"]
[ECO "A06"]
[WhiteElo "2253"]
[BlackElo "2261"]
[Annotator "NA"]
[PlyCount "71"]
[EventDate "2022.02.18"]
[EventType "tourn"]
[EventCountry "CHI"]
[SourceTitle "playchess.com"]
[Source "ChessBase"]
[SourceQuality "1"]
[TimeControl "5400+30"]

1. Nf3 {[%emt 0:00:06]} Nf6 {[%emt 0:05:24]} 2. b3 {[%emt 0:00:09]} c5 {[%emt 0:00:26]} 3. e3 {[%emt 0:00:23]} d5 {[%emt 0:00:10]} 4. Bb2 {[%emt 0:00:11]} a6 {[%emt 0:01:39]} 5. c4 {[%emt 0:01:23]} e6 {[%emt 0:01:06]} 6. Be2 {[%emt 0:01:05]} Be7 {[%emt 0:00:07]} 7. cxd5 {[%emt 0:00:36]} exd5 {[%emt 0:00:16]} 8. O-O {[%emt 0:00:26]} O-O {[%emt 0:03:03]} 9. d4 {[%emt 0:00:08]} Nbd7 {[%emt 0:01:23]} 10. Nc3 {[%emt 0:01:51]} b5 {[%emt 0:01:04]} 11. dxc5 {[%emt 0:06:31]} Nxc5 {[%emt 0:00:30]} 12. Nd4 {[%emt 0:00:21]} Qb6 {[%emt 0:04:16]} 13. Bf3 {[%emt 0:02:10]} Rd8 {[%emt 0:01:01]} 14. Rc1 {[%emt 0:01:45]} b4 {[%emt 0:04:43]} 15. Nce2 {[%emt 0:08:46]} a5 {[%emt 0:03:15]} 16. Nf4 {[%emt 0:01:34]} Ba6 {[%emt 0:06:29]} 17. Nf5 {[%emt 0:09:08]} Bf8 {[%emt 0:03:21]} 18. Be2 {[%emt 0:07:11]} a4 {[%emt 0:03:06]} 19. Bd4 {[%emt 0:04:04]} Nfe4 {[%emt 0:09:13]} 20. Bxa6 {[%emt 0:06:16]} Qxa6 {[%emt 0:02:59]} 21. Bxg7 {[%emt 0:06:53]} Bxg7 {[%emt 0:02:28]} 22. Qg4 {[%emt 0:01:56]} Qf6 {[%emt 0:00:13]} 23. Nh5 {[%emt 0:07:10]} Qg5 {[%emt 0:02:46]} 24. Qxg5 {[%emt 0:00:53]} Nxg5 {[%emt 0:00:01]} 25. Rxc5 {[%emt 0:00:35]} Ne6 {[%emt 0:00:22]} 26. Rxd5 {[%emt 0:01:52]} Rxd5 {[%emt 0:01:28]} 27. Ne7+ {[%emt 0:00:02]} Kf8 {[%emt 0:00:56]} 28. Nxd5 {[%emt 0:00:11]} Bc3 {[%emt 0:00:37]} 29. Nhf4 {[%emt 0:08:28]} axb3 {[%emt 0:02:28]} 30. axb3 {[%emt 0:00:24]} Nc5 {[%emt 0:04:59]} 31. Ne2 {[%emt 0:02:19]} Bd2 {[%emt 0:00:51]} 32. Nd4 {[%emt 0:01:20]} Bc3 {[%emt 0:07:50]} 33. Nc2 {[%emt 0:05:22]} Nd3 {[%emt 0:00:01]} 34. Rd1 {[%emt 0:03:21]} Nxf2 {[%emt 0:00:51]} 35. Kxf2 {[%emt 0:00:27]} Ra2 {[%emt 0:00:01]} 36. Nxc3 {[%emt 0:00:21]} 1-0

[Event "Chile Championship Absolute 2022"]
[Site "Las Condes"]
[Date "2022.02.21"]
[Round "5.3"]
[White "Diaz Villagran, Robert"]
[Black "Olivares Olivares, Claudio"]
[Result "1-0"]
[ECO "B99"]
[WhiteElo "2318"]
[BlackElo "2380"]
[Annotator "ChessBase"]
[PlyCount "89"]
[EventDate "2022.02.18"]
[EventType "tourn"]
[EventCountry "CHI"]
[SourceTitle "playchess.com"]
[Source "ChessBase"]
[SourceQuality "1"]
[TimeControl "5400+30"]

1. e4 {[%emt 1:31:00]} c5 {[%emt 0:17:04]} 2. Nf3 {[%emt 0:00:00]} d6 {[%emt 0:00:08]} 3. d4 {[%emt 0:00:00]} cxd4 {[%emt 0:00:12]} 4. Nxd4 {[%emt 0:00:00]} Nf6 {[%emt 0:00:08]} 5. Nc3 {[%emt 0:00:00]} a6 {[%emt 0:00:05]} 6. Bg5 {[%emt 0:00:00]} e6 {[%emt 0:00:06]} 7. f4 {[%emt 0:00:00]} h6 {[%emt 0:00:04]} 8. Bh4 {[%emt 0:00:00]} Be7 {[%emt 0:00:06]} 9. Qf3 {[%emt 0:00:00]} Nbd7 {[%emt 0:01:07]} 10. O-O-O {[%emt 0:00:00]} Qc7 {[%emt 0:00:04]} 11. Be2 {[%emt 0:00:00]} Rg8 {[%emt 0:01:54]} 12. Bf2 {[%emt 0:00:00]} b5 {[%emt 0:03:16]} 13. a3 {[%emt 0:00:00]} Rb8 {[%emt 0:06:32]} 14. Nb3 {[%emt 0:00:00]} b4 {[%emt 0:00:55]} 15. axb4 {[%emt 0:00:00]} Rxb4 {[%emt 0:00:05]} 16. Rd4 {[%emt 0:00:00]} Rxd4 {[%emt 0:04:41]} 17. Nxd4 {[%emt 0:00:00]} Bb7 {[%emt 0:00:31]} 18. Qe3 {[%emt 0:00:00]} Nc5 {[%emt 0:01:51]} 19. Bf3 {[%emt 0:00:00]} g5 {[%emt 0:00:23]} 20. g3 {[%emt 0:00:00]} gxf4 {[%emt 0:03:13]} 21. gxf4 {[%emt 0:00:00]} Ng4 {[%emt 0:00:26]} 22. Bxg4 {[%emt 0:00:00]} Rxg4 {[%emt 0:00:07]} 23. Rg1 {[%emt 0:00:00]} Rxg1+ {[%emt 0:03:00]} 24. Bxg1 {[%emt 0:00:00]} e5 {[%emt 0:12:50]} 25. Nf3 {[%emt 0:00:00]} exf4 {[%emt 0:15:36]} 26. Qxf4 {[%emt 0:00:00]} Ne6 {[%emt 0:01:10]} 27. Qxh6 {[%emt 0:00:00]} Qc4 {[%emt 0:00:05]} 28. Nd2 {[%emt 0:00:00]} Qb4 {[%emt 0:00:06]} 29. Be3 {[%emt 0:00:00]} Bf8 {[%emt 0:01:07]} 30. Qh8 {[%emt 0:00:00]} Kd7 {[%emt 0:01:32]} 31. Qh5 {[%emt 0:00:00]} Ke8 {[%emt 0:00:29]} 32. Nd5 {[%emt 0:06:15]} Qa4 {[%emt 0:00:17]} 33. c3 {[%emt 0:04:23]} Bg7 {[%emt 0:00:47]} 34. Qe2 {[%emt 0:01:14]} Be5 {[%emt 0:01:55]} 35. Kb1 {[%emt 0:00:57]} Bc6 {[%emt 0:00:21]} 36. Qd3 {[%emt 0:04:00]} Bxh2 {[%emt 0:04:39]} 37. b3 {[%emt 0:00:01]} Qb5 {[%emt 0:00:57]} 38. Kc2 {[%emt 0:00:41]} Qa5 {[%emt 0:08:57]} 39. Kb2 {[%emt 0:00:01]} Bb5 {[%emt 0:01:41]} 40. Qc2 {[%emt 0:00:13]} Qd8 {[%emt 0:00:39]} 41. Nf3 {[%emt 0:00:22]} Be5 {[%emt 0:00:40]} 42. Nxe5 {[%emt 0:00:37]} dxe5 {[%emt 0:00:05]} 43. Qh2 {[%emt 0:00:05]} Qd6 {[%emt 0:02:06]} 44. Qh8+ {[%emt 0:00:11]} Kd7 {[%emt 0:00:51]} 45. Nb6+ {[%emt 0:00:14]} 1-0

[Event "Chile Championship Absolute 2022"]
[Site "Las Condes"]
[Date "2022.02.21"]
[Round "5.4"]
[White "Vasquez Toledo, Cristian"]
[Black "Donoso Diaz, Sebastian"]
[Result "1-0"]
[ECO "C55"]
[WhiteElo "2154"]
[BlackElo "2212"]
[Annotator "NA"]
[PlyCount "99"]
[EventDate "2022.02.18"]
[EventType "tourn"]
[EventCountry "CHI"]
[SourceTitle "playchess.com"]
[Source "ChessBase"]
[SourceQuality "1"]
[TimeControl "5400+30"]

1. e4 {[%emt 0:00:08]} e5 {[%emt 0:08:06]} 2. Nf3 {[%emt 0:00:17]} Nc6 {[%emt 0:00:03]} 3. Bc4 {[%emt 0:00:04]} Be7 {[%emt 0:00:06]} 4. c3 {[%emt 0:00:52]} Nf6 {[%emt 0:01:32]} 5. d3 {[%emt 0:00:23]} O-O {[%emt 0:00:23]} 6. O-O {[%emt 0:00:05]} d5 {[%emt 0:01:32]} 7. exd5 {[%emt 0:00:04]} Nxd5 {[%emt 0:00:04]} 8. Re1 {[%emt 0:00:09]} Bg4 {[%emt 0:00:29]} 9. Nbd2 {[%emt 0:01:20]} Nf4 {[%emt 0:08:10]} 10. Ne4 {[%emt 0:00:56]} Na5 {[%emt 0:09:48]} 11. Bxf4 {[%emt 0:00:29]} Nxc4 {[%emt 0:00:31]} 12. Bc1 {[%emt 0:00:08]} f5 {[%emt 0:25:28]} 13. Qb3 {[%emt 0:06:55]} Qxd3 {[%emt 0:16:36]} 14. Nxe5 {[%emt 0:01:17]} Qd5 {[%emt 0:01:57]} 15. Qxc4 {[%emt 0:05:50]} Qxc4 {[%emt 0:00:04]} 16. Nxc4 {[%emt 0:00:05]} fxe4 {[%emt 0:00:05]} 17. Rxe4 {[%emt 0:00:02]} Bc5 {[%emt 0:02:10]} 18. Rxg4 {[%emt 0:01:17]} Bxf2+ {[%emt 0:05:59]} 19. Kh1 {[%emt 0:00:28]} b5 {[%emt 0:00:14]} 20. Bh6 {[%emt 0:01:37]} bxc4 {[%emt 0:00:51]} 21. Bxg7 {[%emt 0:00:07]} h5 {[%emt 0:00:34]} 22. Rg5 {[%emt 0:00:39]} Be3 {[%emt 0:00:58]} 23. Rg3 {[%emt 0:02:36]} Bf4 {[%emt 0:02:29]} 24. Bxf8+ {[%emt 0:00:02]} Bxg3 {[%emt 0:00:09]} 25. Bc5 {[%emt 0:00:24]} Bd6 {[%emt 0:01:22]} 26. Bxd6 {[%emt 0:03:55]} cxd6 {[%emt 0:00:01]} 27. Re1 {[%emt 0:00:13]} Rb8 {[%emt 0:00:49]} 28. Re2 {[%emt 0:00:06]} Kf7 {[%emt 0:00:14]} 29. Kg1 {[%emt 0:00:04]} Rb5 {[%emt 0:00:19]} 30. Kf2 {[%emt 0:00:05]} Kf6 {[%emt 0:00:25]} 31. Ke3 {[%emt 0:00:54]} Re5+ {[%emt 0:00:18]} 32. Kd2 {[%emt 0:00:02]} Rd5+ {[%emt 0:00:57]} 33. Kc2 {[%emt 0:00:09]} Ra5 {[%emt 0:00:55]} 34. Kb1 {[%emt 0:00:19]} Rb5 {[%emt 0:01:07]} 35. g3 {[%emt 0:01:49]} Kg5 {[%emt 0:00:49]} 36. Re4 {[%emt 0:01:18]} d5 {[%emt 0:06:49]} 37. Re5+ {[%emt 0:00:37]} Kg4 {[%emt 0:00:57]} 38. Kc2 {[%emt 0:00:08]} h4 {[%emt 0:00:34]} 39. gxh4 {[%emt 0:00:07]} Kxh4 {[%emt 0:00:02]} 40. b4 {[%emt 0:01:00]} cxb3+ {[%emt 0:01:03]} 41. axb3 {[%emt 0:00:01]} a6 {[%emt 0:02:14]} 42. Re6 {[%emt 0:01:34]} a5 {[%emt 0:00:10]} 43. Re5 {[%emt 0:00:12]} Kg4 {[%emt 0:02:31]} 44. c4 {[%emt 0:01:25]} Rb4 {[%emt 0:00:02]} 45. Rxd5 {[%emt 0:00:47]} a4 {[%emt 0:00:01]} 46. Rb5 {[%emt 0:01:23]} axb3+ {[%emt 0:00:05]} 47. Kc3 {[%emt 0:00:04]} Ra4 {[%emt 0:00:06]} 48. Kxb3 {[%emt 0:00:05]} Ra1 {[%emt 0:00:08]} 49. Re5 {[%emt 0:00:14]} Kf4 {[%emt 0:00:20]} 50. Re2 {[%emt 0:00:13]} 1-0

[Event "Chile Championship Absolute 2022"]
[Site "Las Condes"]
[Date "2022.02.24"]
[Round "8.1"]
[White "Palma Neira, Eliseo Maximiliano"]
[Black "Barriga Silva, Felipe"]
[Result "1/2-1/2"]
[ECO "E67"]
[WhiteElo "2029"]
[BlackElo "2162"]
[Annotator "RC"]
[PlyCount "109"]
[EventDate "2022.02.18"]
[EventType "tourn"]
[EventCountry "CHI"]
[SourceTitle "playchess.com"]
[Source "ChessBase"]
[SourceQuality "1"]
[TimeControl "5400+30"]

1. d4 {[%emt 0:05:30]} Nf6 {[%emt 0:00:06]} 2. Nf3 {[%emt 0:00:12]} g6 {[%emt 0:00:04]} 3. c4 {[%emt 0:00:20]} Bg7 {[%emt 0:00:05]} 4. g3 {[%emt 0:00:23]} O-O {[%emt 0:00:10]} 5. Bg2 {[%emt 0:00:20]} d6 {[%emt 0:00:19]} 6. O-O {[%emt 0:00:33]} Nbd7 {[%emt 0:00:05]} 7. Nc3 {[%emt 0:00:42]} e5 {[%emt 0:00:13]} 8. d5 {[%emt 0:03:03]} Nc5 {[%emt 0:00:56]} 9. b4 {[%emt 0:01:41]} Nce4 {[%emt 0:00:06]} 10. Nxe4 {[%emt 0:06:21]} Nxe4 {[%emt 0:00:11]} 11. Qe1 {[%emt 0:05:18]} a5 {[%emt 0:04:13]} 12. bxa5 {[%emt 0:07:50]} f5 {[%emt 0:00:38]} 13. Nd2 {[%emt 0:00:43]} Nc5 {[%emt 0:08:26]} 14. Nb3 {[%emt 0:06:29]} Na4 {[%emt 0:04:36]} 15. Bd2 {[%emt 0:04:38]} f4 {[%emt 0:05:42]} 16. Rc1 {[%emt 0:54:27]} g5 {[%emt 0:04:12]} 17. c5 {[%emt 0:00:00]} g4 {[%emt 0:01:54]} 18. f3 {[%emt 0:00:00]} gxf3 {[%emt 0:10:33]} 19. Rxf3 {[%emt 0:00:00]} dxc5 {[%emt 0:03:00]} 20. Rf1 {[%emt 0:00:00]} Qd6 {[%emt 0:06:20]} 21. gxf4 {[%emt 0:00:00]} Bg4 {[%emt 0:16:53]} 22. Rc4 {[%emt 0:00:00]} b5 {[%emt 0:03:42]} 23. axb6 {[%emt 0:00:00]} Nxb6 {[%emt 0:29:36]} 24. Rxc5 {[%emt 0:00:00]} Rxa2 {[%emt 0:00:00]} 25. Rc6 {[%emt 0:00:00]} Qd7 {[%emt 0:00:00]} 26. Nc5 {[%emt 0:00:00]} Qd8 {[%emt 0:00:00]} 27. h3 {[%emt 0:00:00]} Bd7 {[%emt 0:00:00]} 28. Nxd7 {[%emt 0:00:00]} Qxd7 {[%emt 0:00:00]} 29. d6 {[%emt 0:00:00]} Kh8 {[%emt 0:00:00]} 30. Bc3 {[%emt 0:00:00]} cxd6 {[%emt 0:00:00]} 31. fxe5 {[%emt 0:00:00]} Rxf1+ {[%emt 0:00:00]} 32. Qxf1 {[%emt 0:00:00]} Qd8 {[%emt 0:01:30]} 33. Qd1 {[%emt 0:00:00]} d5 {[%emt 0:00:35]} 34. Rd6 {[%emt 0:00:00]} Qc7 {[%emt 0:00:55]} 35. Bd4 {[%emt 0:00:00]} Nc8 {[%emt 0:01:00]} 36. Rxd5 {[%emt 0:01:15]} Ne7 {[%emt 0:00:41]} 37. Rc5 {[%emt 0:02:54]} Qd8 {[%emt 0:00:15]} 38. e3 {[%emt 0:00:33]} Qf8 {[%emt 0:01:09]} 39. Qg4 {[%emt 0:01:38]} Qf2+ {[%emt 0:00:53]} 40. Kh2 {[%emt 0:00:05]} Ra8 {[%emt 0:00:49]} 41. e6 {[%emt 0:02:19]} Rg8 {[%emt 0:00:15]} 42. Rg5 {[%emt 0:00:12]} Qf8 {[%emt 0:00:26]} 43. h4 {[%emt 0:03:02]} Qb8+ {[%emt 0:00:28]} 44. Kh3 {[%emt 0:00:18]} Qf8 {[%emt 0:00:15]} 45. h5 {[%emt 0:00:51]} h6 {[%emt 0:00:01]} 46. Rxg7 {[%emt 0:00:41]} Rxg7 {[%emt 0:00:01]} 47. Be5 {[%emt 0:00:55]} Kg8 {[%emt 0:00:25]} 48. Bxg7 {[%emt 0:00:09]} Qxg7 {[%emt 0:00:01]} 49. Be4 {[%emt 0:00:23]} Kh8 {[%emt 0:00:40]} 50. Bg6 {[%emt 0:00:22]} Qf6 {[%emt 0:00:16]} 51. Bd3 {[%emt 0:00:41]} Qe5 {[%emt 0:00:29]} 52. Qd4 {[%emt 0:00:11]} Qg7 {[%emt 0:00:55]} 53. Qd8+ {[%emt 0:00:13]} Ng8 {[%emt 0:00:01]} 54. Bg6 {[%emt 0:00:47]} Qf8 {[%emt 0:03:30]} 55. Qxf8 {[%emt 0:00:06]} 1/2-1/2

[Event "Chile Championship Absolute 2022"]
[Site "Las Condes"]
[Date "2022.02.24"]
[Round "8.2"]
[White "Donoso Diaz, Sebastian"]
[Black "Bahamondes Ortiz, Benjamin"]
[Result "1/2-1/2"]
[ECO "D02"]
[WhiteElo "2212"]
[BlackElo "2164"]
[Annotator "RC"]
[PlyCount "102"]
[EventDate "2022.02.18"]
[EventType "tourn"]
[EventCountry "CHI"]
[SourceTitle "playchess.com"]
[Source "ChessBase"]
[SourceQuality "1"]
[TimeControl "5400+30"]

1. d4 {[%emt 0:05:12]} Nf6 {[%emt 0:00:04]} 2. Nf3 {[%emt 0:00:19]} e6 {[%emt 0:00:10]} 3. g3 {[%emt 0:00:31]} c5 {[%emt 0:00:11]} 4. Bg2 {[%emt 0:00:21]} cxd4 {[%emt 0:00:24]} 5. Nxd4 {[%emt 0:00:05]} d5 {[%emt 0:00:10]} 6. O-O {[%emt 0:01:12]} e5 {[%emt 0:00:43]} 7. Nb3 {[%emt 0:02:24]} Nc6 {[%emt 0:01:25]} 8. Bg5 {[%emt 0:04:02]} Be6 {[%emt 0:00:13]} 9. Nc3 {[%emt 0:01:07]} d4 {[%emt 0:01:53]} 10. Ne4 {[%emt 0:01:06]} Be7 {[%emt 0:05:15]} 11. Nec5 {[%emt 0:09:24]} Bxb3 {[%emt 0:12:56]} 12. Nxb7 {[%emt 0:21:00]} Qb6 {[%emt 0:00:24]} 13. cxb3 {[%emt 0:02:46]} Qxb7 {[%emt 0:08:19]} 14. Rc1 {[%emt 0:00:14]} Rc8 {[%emt 0:00:02]} 15. Qc2 {[%emt 0:00:34]} O-O {[%emt 0:00:16]} 16. Bxc6 {[%emt 0:00:15]} Qa6 {[%emt 0:07:00]} 17. Qc4 {[%emt 0:12:17]} Qxa2 {[%emt 0:03:16]} 18. Ra1 {[%emt 0:02:39]} Qxb2 {[%emt 0:00:09]} 19. Rxa7 {[%emt 0:00:16]} Bd6 {[%emt 0:05:18]} 20. Bxf6 {[%emt 0:07:49]} gxf6 {[%emt 0:00:04]} 21. Rd7 {[%emt 0:00:55]} Bb4 {[%emt 0:06:29]} 22. Rb7 {[%emt 0:07:02]} Bc3 {[%emt 0:03:55]} 23. b4 {[%emt 0:02:17]} Bxb4 {[%emt 0:03:33]} 24. Rxb4 {[%emt 0:03:57]} Rxc6 {[%emt 0:00:03]} 25. Qxc6 {[%emt 0:00:07]} Qxb4 {[%emt 0:00:04]} 26. Qxf6 {[%emt 0:00:08]} Re8 {[%emt 0:00:55]} 27. Qg5+ {[%emt 0:00:11]} Kh8 {[%emt 0:00:21]} 28. Rc1 {[%emt 0:03:25]} Qe7 {[%emt 0:00:27]} 29. Qf5 {[%emt 0:00:27]} Qe6 {[%emt 0:00:24]} 30. Qe4 {[%emt 0:00:10]} Qg6 {[%emt 0:00:49]} 31. Qb7 {[%emt 0:00:41]} Kg7 {[%emt 0:01:33]} 32. Rc7 {[%emt 0:00:02]} Qf5 {[%emt 0:04:54]} 33. Qd5 {[%emt 0:01:17]} Qe6 {[%emt 0:00:59]} 34. Qe4 {[%emt 0:02:02]} Qg6 {[%emt 0:00:18]} 35. Qb7 {[%emt 0:00:05]} Qf5 {[%emt 0:00:14]} 36. h3 {[%emt 0:00:41]} Re6 {[%emt 0:01:55]} 37. Qc8 {[%emt 0:05:08]} Qxh3 {[%emt 0:01:45]} 38. Re7 {[%emt 0:00:12]} Qf5 {[%emt 0:00:49]} 39. Rxe6 {[%emt 0:00:15]} Qxe6 {[%emt 0:00:26]} 40. Qd8 {[%emt 0:00:36]} Qf6 {[%emt 0:00:43]} 41. Qd7 {[%emt 0:00:02]} h6 {[%emt 0:02:10]} 42. Qd5 {[%emt 0:00:32]} Qg5 {[%emt 0:00:43]} 43. Kg2 {[%emt 0:00:17]} Qf5 {[%emt 0:00:33]} 44. Kg1 {[%emt 0:00:40]} Qe6 {[%emt 0:01:34]} 45. Qe4 {[%emt 0:00:50]} f5 {[%emt 0:00:29]} 46. Qb7+ {[%emt 0:00:02]} Kg6 {[%emt 0:01:04]} 47. Qb8 {[%emt 0:00:25]} e4 {[%emt 0:00:29]} 48. Qd8 {[%emt 0:00:09]} Qf6 {[%emt 0:03:33]} 49. Qg8+ {[%emt 0:00:18]} Qg7 {[%emt 0:00:58]} 50. Qe8+ {[%emt 0:00:06]} Kh7 {[%emt 0:00:54]} 51. Qc8 {[%emt 0:00:26]} Qf6 {[%emt 0:01:54]} 1/2-1/2

[Event "Chile Championship Absolute 2022"]
[Site "Las Condes"]
[Date "2022.02.24"]
[Round "8.4"]
[White "Aguirre Contreras, Cristian Rodrigo"]
[Black "Lopez Silva, Hugo Andres"]
[Result "0-1"]
[ECO "A70"]
[WhiteElo "2261"]
[BlackElo "2407"]
[Annotator "RC"]
[PlyCount "92"]
[EventDate "2022.02.18"]
[EventType "tourn"]
[EventCountry "CHI"]
[SourceTitle "playchess.com"]
[Source "ChessBase"]
[SourceQuality "1"]
[TimeControl "5400+30"]

1. d4 {[%emt 0:00:02]} Nf6 {[%emt 0:25:59]} 2. c4 {[%emt 0:00:06]} g6 {[%emt 0:00:55]} 3. Nc3 {[%emt 0:00:04]} Bg7 {[%emt 0:00:12]} 4. e4 {[%emt 0:00:03]} d6 {[%emt 0:00:04]} 5. h3 {[%emt 0:00:12]} c5 {[%emt 0:00:30]} 6. d5 {[%emt 0:00:37]} O-O {[%emt 0:00:03]} 7. Nf3 {[%emt 0:01:17]} e6 {[%emt 0:00:02]} 8. Bd3 {[%emt 0:00:06]} exd5 {[%emt 0:00:04]} 9. cxd5 {[%emt 0:00:05]} Nh5 {[%emt 0:05:15]} 10. O-O {[%emt 0:02:22]} Nd7 {[%emt 0:00:03]} 11. Bg5 {[%emt 0:00:05]} Bf6 {[%emt 0:00:15]} 12. Be3 {[%emt 0:00:02]} a6 {[%emt 0:04:21]} 13. a4 {[%emt 0:00:07]} Re8 {[%emt 0:00:25]} 14. Re1 {[%emt 0:01:13]} Ne5 {[%emt 0:01:46]} 15. g4 {[%emt 0:00:09]} Ng7 {[%emt 0:02:47]} 16. Nxe5 {[%emt 0:02:23]} Bxe5 {[%emt 0:00:18]} 17. f4 {[%emt 0:00:08]} Bd4 {[%emt 0:05:07]} 18. Qf3 {[%emt 0:07:39]} f5 {[%emt 0:08:32]} 19. g5 {[%emt 0:14:26]} Bxc3 {[%emt 0:01:54]} 20. bxc3 {[%emt 0:01:39]} fxe4 {[%emt 0:00:05]} 21. Bxe4 {[%emt 0:00:18]} Bf5 {[%emt 0:03:44]} 22. Bd2 {[%emt 0:01:53]} Rxe4 {[%emt 0:01:47]} 23. Rxe4 {[%emt 0:00:08]} Bxe4 {[%emt 0:00:02]} 24. Qxe4 {[%emt 0:00:07]} Qd7 {[%emt 0:00:02]} 25. Qf3 {[%emt 0:04:07]} Re8 {[%emt 0:01:46]} 26. c4 {[%emt 0:04:53]} Nf5 {[%emt 0:03:57]} 27. Re1 {[%emt 0:07:25]} Rxe1+ {[%emt 0:13:14]} 28. Bxe1 {[%emt 0:01:01]} Qxa4 {[%emt 0:00:01]} 29. Qe4 {[%emt 0:01:41]} Qd7 {[%emt 0:00:06]} 30. Qd3 {[%emt 0:05:27]} Qe8 {[%emt 0:01:56]} 31. Bd2 {[%emt 0:00:56]} b5 {[%emt 0:00:21]} 32. cxb5 {[%emt 0:00:31]} axb5 {[%emt 0:00:02]} 33. Kf2 {[%emt 0:00:16]} b4 {[%emt 0:17:02]} 34. Bc1 {[%emt 0:03:28]} Qf7 {[%emt 0:01:26]} 35. Qb5 {[%emt 0:14:26]} Nd4 {[%emt 0:00:14]} 36. Qa6 {[%emt 0:01:03]} Qe8 {[%emt 0:01:58]} 37. Be3 {[%emt 0:01:07]} Nf5 {[%emt 0:00:02]} 38. Bc1 {[%emt 0:00:44]} Qe4 {[%emt 0:00:55]} 39. Qc8+ {[%emt 0:01:45]} Kf7 {[%emt 0:00:01]} 40. Qd7+ {[%emt 0:00:17]} Ne7 {[%emt 0:00:34]} 41. Qxd6 {[%emt 0:01:08]} Qc2+ {[%emt 0:00:20]} 42. Kf3 {[%emt 0:00:29]} Qxc1 {[%emt 0:00:40]} 43. Qe6+ {[%emt 0:01:23]} Kf8 {[%emt 0:00:02]} 44. Qf6+ {[%emt 0:03:00]} Ke8 {[%emt 0:00:01]} 45. d6 {[%emt 0:02:03]} Qf1+ {[%emt 0:00:12]} 46. Ke3 {[%emt 0:00:17]} Nd5+ {[%emt 0:00:00]} 0-1

[Event "Chile Championship Absolute 2022"]
[Site "Las Condes"]
[Date "2022.02.24"]
[Round "8.5"]
[White "Vergara Rozas, Jose Francisco"]
[Black "Vasquez Toledo, Cristian"]
[Result "1/2-1/2"]
[ECO "B32"]
[WhiteElo "2044"]
[BlackElo "2154"]
[Annotator "RC"]
[PlyCount "139"]
[EventDate "2022.02.18"]
[EventType "tourn"]
[EventCountry "CHI"]
[SourceTitle "playchess.com"]
[Source "ChessBase"]
[SourceQuality "1"]
[TimeControl "5400+30"]

1. e4 {[%emt 0:06:02]} c5 {[%emt 0:00:07]} 2. Nf3 {[%emt 0:00:05]} Nc6 {[%emt 0:00:03]} 3. d4 {[%emt 0:00:02]} cxd4 {[%emt 0:00:07]} 4. Nxd4 {[%emt 0:00:12]} e5 {[%emt 0:00:05]} 5. Nb5 {[%emt 0:00:05]} d6 {[%emt 0:00:05]} 6. N1c3 {[%emt 0:00:04]} a6 {[%emt 0:00:06]} 7. Na3 {[%emt 0:00:04]} Be7 {[%emt 0:00:12]} 8. Nd5 {[%emt 0:00:11]} Nf6 {[%emt 0:01:44]} 9. Nxe7 {[%emt 0:01:24]} Qxe7 {[%emt 0:00:07]} 10. Bg5 {[%emt 0:00:12]} Be6 {[%emt 0:13:16]} 11. Nc4 {[%emt 0:01:13]} Rd8 {[%emt 0:01:00]} 12. Ne3 {[%emt 0:00:27]} O-O {[%emt 0:01:11]} 13. c3 {[%emt 0:00:20]} h6 {[%emt 0:01:46]} 14. Bxf6 {[%emt 0:01:06]} Qxf6 {[%emt 0:00:30]} 15. g3 {[%emt 0:00:21]} Ne7 {[%emt 0:08:00]} 16. Bg2 {[%emt 0:00:31]} Rd7 {[%emt 0:00:27]} 17. O-O {[%emt 0:00:18]} Rfd8 {[%emt 0:01:31]} 18. c4 {[%emt 0:00:34]} b5 {[%emt 0:01:32]} 19. cxb5 {[%emt 0:02:11]} axb5 {[%emt 0:00:11]} 20. Qe2 {[%emt 0:02:20]} Rb7 {[%emt 0:06:06]} 21. Rfd1 {[%emt 0:01:29]} Nc6 {[%emt 0:01:25]} 22. Qd2 {[%emt 0:03:07]} Ra7 {[%emt 0:05:48]} 23. Nd5 {[%emt 0:19:56]} Bxd5 {[%emt 0:01:14]} 24. Qxd5 {[%emt 0:00:03]} Nd4 {[%emt 0:00:26]} 25. a3 {[%emt 0:00:58]} Rc7 {[%emt 0:01:04]} 26. a4 {[%emt 0:17:10]} Rc2 {[%emt 0:55:27]} 27. Rf1 {[%emt 0:01:48]} bxa4 {[%emt 0:00:00]} 28. Rxa4 {[%emt 0:00:09]} Rxb2 {[%emt 0:00:00]} 29. Ra8 {[%emt 0:01:53]} Rxa8 {[%emt 0:00:00]} 30. Qxa8+ {[%emt 0:00:07]} Kh7 {[%emt 0:00:00]} 31. Qa3 {[%emt 0:00:57]} Rc2 {[%emt 0:00:00]} 32. Qd3 {[%emt 0:01:20]} Qe6 {[%emt 0:00:00]} 33. Qa6 {[%emt 0:02:18]} g5 {[%emt 0:00:00]} 34. h3 {[%emt 0:05:35]} Kg7 {[%emt 0:00:00]} 35. Qd3 {[%emt 0:02:12]} Qf6 {[%emt 0:00:00]} 36. Qd1 {[%emt 0:00:51]} Re2 {[%emt 0:00:00]} 37. Qb1 {[%emt 0:03:25]} h5 {[%emt 0:00:00]} 38. Qd3 {[%emt 0:00:07]} Kh6 {[%emt 0:00:00]} 39. Qa3 {[%emt 0:00:49]} g4 {[%emt 0:00:00]} 40. h4 {[%emt 0:00:12]} Kg7 {[%emt 0:00:00]} 41. Qd3 {[%emt 0:00:23]} Qg6 {[%emt 0:00:00]} 42. Ra1 {[%emt 0:01:53]} Kh7 {[%emt 0:00:00]} 43. Rd1 {[%emt 0:00:22]} Qf6 {[%emt 0:00:00]} 44. Rf1 {[%emt 0:00:05]} Kg7 {[%emt 0:00:00]} 45. Qa3 {[%emt 0:00:33]} Rc2 {[%emt 0:00:00]} 46. Qe3 {[%emt 0:00:17]} Rb2 {[%emt 0:00:00]} 47. Qa3 {[%emt 0:01:01]} Rb3 {[%emt 0:00:00]} 48. Qa8 {[%emt 0:01:12]} Ne2+ {[%emt 0:00:00]} 49. Kh2 {[%emt 0:01:13]} Nd4 {[%emt 0:04:06]} 50. Qa6 {[%emt 0:02:32]} Nf3+ {[%emt 0:03:28]} 51. Bxf3 {[%emt 0:00:16]} Qxf3 {[%emt 0:00:19]} 52. Qxd6 {[%emt 0:01:00]} Qxe4 {[%emt 0:00:10]} 53. Qd2 {[%emt 0:00:40]} Qf5 {[%emt 0:00:20]} 54. Re1 {[%emt 0:23:55]} Rf3 {[%emt 0:01:28]} 55. Kg1 {[%emt 0:00:00]} Qf6 {[%emt 0:02:57]} 56. Qb2 {[%emt 0:00:00]} Rf5 {[%emt 0:00:33]} 57. Qd2 {[%emt 0:00:00]} Kg6 {[%emt 0:00:59]} 58. Qd3 {[%emt 0:00:00]} Kg7 {[%emt 0:00:16]} 59. Qd2 {[%emt 0:00:00]} Qe6 {[%emt 0:00:21]} 60. Qe3 {[%emt 0:00:00]} Qa2 {[%emt 0:01:00]} 61. Rc1 {[%emt 0:00:00]} Qd5 {[%emt 0:00:45]} 62. Re1 {[%emt 0:00:00]} Kg6 {[%emt 0:00:17]} 63. Rb1 {[%emt 0:00:00]} Qd4 {[%emt 0:00:51]} 64. Rb6+ {[%emt 0:00:00]} f6 {[%emt 0:00:09]} 65. Qxd4 {[%emt 0:00:00]} exd4 {[%emt 0:00:02]} 66. Rd6 {[%emt 0:00:00]} Re5 {[%emt 0:00:45]} 67. Rxd4 {[%emt 0:00:00]} Re6 {[%emt 0:00:12]} 68. Kg2 {[%emt 0:00:00]} Ra6 {[%emt 0:00:12]} 69. Rb4 {[%emt 0:00:00]} Ra3 {[%emt 0:00:28]} 70. Rb8 {[%emt 0:00:00]} 1/2-1/2